Workbook

Sheet новые цены
B1: 117218, Москва, ул. Кржижановского д. 17 корп. 1, этаж 2
B2: Тел: + 7 (499) 685-11-11, + 7 (499) 685-45-45, Факс: 7 (499) 685-46-46. Факс: (вн. тел.): 201
B3: Cклад: Россия, Московская область, Ленинский район, село Булатниково, Центральная улица д 1А. Тел: + 7 (499) 685-11-11, + 7 (499) 685-45-45, Факс: 7 (499) 685-46-46. Факс: (вн. тел.): 201..
B4: Тел: + 7 (499) 685-11-11, + 7 (499) 685-45-45, Факс: 7 (499) 685-46-46. Факс: (вн. тел.): 201.
B5: www.ameria.ru
A6: "Америа Русс" ООО
A7: ПРАЙС - ЛИСТ
C10: Действителен на 01.01.2021
B12: .
A14: Код товара | B14: Наименование товара | C14: Вес/объем | D14: Кол-во | E14: Цена | F14: Цена за упаковку
D15: шт./уп. | E15: руб./шт. | F15: руб./шт
A16: МАКАРОННЫЕ ИЗДЕЛИЯ
A17: 0100 | B17: FEDERICI/ФЕДЕРИЧИ (Россия), группа А
A18: 0100003 | B18: № 003 Spaghetti (Cпагетти) "Федеричи" Макар. изд-я 0.5кг. | C18: 500 г | D18: 30 | E18: 56.65 | F18: =D18*E18 -> 1699.5
A19: 0100005 | B19: № 005 Bucatini (Соломка) "Федеричи"- Макар. изд-я 0.5кг. | C19: 500 г | D19: 30 | E19: 56.65 | F19: 1699.5
A20: 0100009/1 | B20: № 009 Ziti (Макароны классические) "Федеричи"- Макар. изд-я 0.5кг. | C20: 500 г | D20: 30 | E20: 56.65 | F20: 1699.5
A21: 0100023 | B21: № 023 Penne rigate (Перья рифлёные)"Федеричи" - Макар. изд-я 0.5кг. | C21: 500 г | D21: 30 | E21: 56.65 | F21: 1699.5
A22: 0100042 | B22: № 042 Fusilli (Спиральки)"Федеричи" - Макар. изд-я 0.5кг. | C22: 500 г | D22: 30 | E22: 56.65 | F22: 1699.5
A23: 0100051 | B23: № 051 Cavatappi (Пружинки рифлёные)"Федеричи" - Макар. изд-я 0.5кг. | C23: 500 г | D23: 30 | E23: 56.65 | F23: 1699.5
A24: 0100056 | B24: № 056 Chifferi rigate (Рожки рифлёные) "Федеричи" - Макар. изд-я 0.5кг. | C24: 500 г | D24: 30 | E24: 56.65 | F24: 1699.5
A25: 0100059 | B25: № 059 Lumachine (Улитки) "Федеричи" - Макар. изд-я 0.5кг. | C25: 500 г | D25: 30 | E25: 56.65 | F25: 1699.5
A26: 0100066 | B26: № 066 Farfalle (Бантики) "Федеричи" Макар. изд-я | C26: 400гр | D26: 30 | E26: 52.47 | F26: 1574.1
A27: 0100096 | B27: № 096 Fedelini tagliati (Вермишель) "Федеричи" - Макар. изд-я 0.5кг. | C27: 500 г | D27: 30 | E27: 56.65 | F27: 1699.5
A29: 0101003 | B29: Федеричи № 003 Spaghetti (Cпагетти) - Макар. изд-я 3кг. | C29: 3кг | D29: 5 | E29: 275 | F29: =D29*E29 -> 1375
A30: 0101023 | B30: Федеричи № 023 Penne rigate (Перья рифлёные) - Макар. изд-я 3кг | C30: 3 кг | D30: 5 | E30: 275 | F30: 1375
A31: 0101042 | B31: Федеричи № 042 Fusilli (Спиральки)- Макар. изд-я 3кг | C31: 3 кг | D31: 5 | E31: 275 | F31: 1375
A32: 0101051 | B32: Федеричи № 051 Cavatappi (Пружинки рифлёные) - Макар. изд-я 3кг. | C32: 3 кг | D32: 5 | E32: 275 | F32: 1375
A33: 0101056 | B33: Федеричи № 056 Chifferi rigate (Рожки рифлёные) - Макар. изд-я 3кг. | C33: 3кг | D33: 5 | E33: 275 | F33: 1375
A34: 0101059 | B34: Федеричи № 059 Lumachine (Улитки) - Макар. изд-я 3кг. | C34: 3кг | D34: 5 | E34: 275 | F34: 1375
A35: 0101066 | B35: Федеричи № 066 Farfalle (Бантики)- Макар. изд-я 3кг | C35: 3кг | D35: 5 | E35: 286 | F35: 1430
A36: 0101096 | B36: Федеричи № 096 Вермишель-паутинка - Макар. изд-я 3кг. | C36: 3 кг | D36: 5 | E36: 275 | F36: 1375
B37: FEDERICI/ФЕДЕРИЧИ (Италия)
A38: 0100203 | B38: 203 Federici Тальятелле, Лапша яичная в гнездах, 200г х 12 (полим. уп.) | C38: 200 г | D38: 12 | E38: 102.85 | F38: =D38*E38 -> 1234.2
A39: 0100204 | B39: 204 Federici Фетучини, Лапша яичная в гнездах, 200г х 12 (полим. уп.) | C39: 200 г | D39: 12 | E39: 102.85 | F39: =D39*E39 -> 1234.2
B40: "Federici" безглютеновые макаронные изделия
A41: 0100303 | B41: 3 Federici Spaghetti Макаронные изделия безглютеновые Спагетти, 400 г х 12 (полим. уп.) | C41: 400гр | D41: 12 | E41: 108.9 | F41: =D41*E41 -> 1306.8
A42: 0100303/1 | B42: 3P Federici Spaghetti Изделия макаронные без глютена Спагетти, 400 г х 12 (полим. уп.) | C42: 400гр | D42: 12 | E42: 108.9 | F42: 1306.8
A43: 0100303/3 | B43: 3 Federici Spaghetti Изделия макаронные без глютена из красной чечевицы Спагетти, 250 г х 24 (полим. уп.) | C43: 250гр | D43: 24 | E43: 137.5 | F43: =D43*E43 -> 3300
A44: 0100303/4 | B44: 3 Federici Spaghetti Изделия макаронные без глютена из бурого риса с амарантом и киноа Спагетти, 250 г х 24 (полим. уп.) | C44: 250гр | D44: 24 | E44: 137.5 | F44: =D44*E44 -> 3300
A45: 0100312 | B45: 12 Federici Linguine Макаронные изделия безглютеновые Лапша длинная, 400 г х 12 (полим. уп.) | C45: 400гр | D45: 12 | E45: 108.9 | F45: 1306.8
A46: 0100312/1 | B46: 12P Federici Linguine Изделия макаронные без глютена Лапша длинная, 400 г х 12 (полим. уп.) | C46: 400гр | D46: 12 | E46: 108.9 | F46: 1306.8
A47: 0100323 | B47: 23 Federici Penne Rigate Макаронные изделия безглютеновые Перья рифлёные, 400 г х 12 (полим. уп.) | C47: 400гр | D47: 12 | E47: 132 | F47: 1584
A48: 0100323/1 | B48: 23 Federici Penne Rigate Макаронные изделия безглютеновые из красной чечевицы Перья рифлёные, 250 г х 12 (карт.уп.) | C48: 250гр | D48: 12 | E48: 198 | F48: =D48*E48 -> 2376
A49: 0100342 | B49: 42 Federici Fusilli Макаронные изделия безглютеновые Спиральки, 400 г х 12 (полим. уп.) | C49: 400гр | D49: 12 | E49: 132 | F49: =D49*E49 -> 1584
A50: 0100342/1 | B50: 42 Federici Fusilli Макаронные изделия безглютеновые из красной чечевицы Спиральки, 250 г х 12 (карт.уп.) | C50: 250гр | D50: 12 | E50: 198 | F50: 2376
B51: "Federici" цельнозерновые макаронные изделия
A52: 0100403 | B52: 3 Federici Spaghetti Макаронные изделия цельнозерновые Спагетти, 400 г х 30 (полим. уп.) | C52: 400гр | D52: 30 | E52: 54.45 | F52: =D52*E52 -> 1633.5
A53: 0100423 | B53: 23 Federici Penne Rigate Макаронные изделия цельнозерновые Перья рифлёные, 400 г х 30 (полим. уп.) | C53: 400гр | D53: 30 | E53: 54.45 | F53: =D53*E53 -> 1633.5
A54: 0100442 | B54: 42 Federici Fusilli Макаронные изделия цельнозерновые Спиральки, 400 г х 30 (полим. уп.) | C54: 400гр | D54: 30 | E54: 54.45 | F54: =D54*E54 -> 1633.5
A55: 0100442/2 | B55: 42 Federici Fusilli Макаронные изделия цельнозерновые Спиральки, 400 г х 20 (полим. уп.) | C55: 400гр | D55: 20 | E55: 54.45 | F55: =D55*E55 -> 1089
B56: "Federici" макаронные изделия без глютена
A57: 0100503 | B57: 3 Federici Spaghetti Изделия макаронные без глютена Спагетти, 250 г х 24 (полим. уп.) | C57: 250гр | D57: 24 | E57: 69.3 | F57: =D57*E57 -> 1663.2
A58: 0100512 | B58: 12 Federici Linguine Изделия макаронные без глютена Лапша длинная, 250 г х 24 (полим. уп.) | C58: 250гр | D58: 24 | E58: 69.3 | F58: =D58*E58 -> 1663.2
A59: 0103 | B59: "АМЕРИЯ" (Россия), группа В
A60: 0103003 | B60: Спагетти "Америя" № 003 - Макар. изд-я 0.4кг. | C60: 400 г | D60: 30 | E60: 25.3 | F60: =D60*E60 -> 759
A61: 0103003/9 | B61: Фасовка 900гр. Спагетти "Америя" № 003 (уп х 20) | C61: 900 г | D61: 20 | E61: 53.24 | F61: 1064.8
A62: 0103005 | B62: Соломка "Америя" (Спагетти с дырочкой) № 005 - Макар. изд-я 0.4кг. | C62: 400 г | D62: 30 | E62: 25.3 | F62: 759
A63: 0103009 | B63: Классические "Америя" № 009 - Макар. изд-я 0.4кг. | C63: 400 г | D63: 30 | E63: 25.3 | F63: 759
A64: 0103012 | B64: Лапша длинная "Америя" № 012 - Макар. изд-я 0.4кг. | C64: 400 г | D64: 30 | E64: 25.3 | F64: 759
A65: 0103021 | B65: Перья гладкие "Америя" № 021 - Макар. изд-я 0.4кг. | C65: 400 г | D65: 30 | E65: 25.3 | F65: 759
A66: 0103023 | B66: Перья рифленые "Америя" № 023 - Макар. изд-я 0.4кг. | C66: 400 г | D66: 30 | E66: 25.3 | F66: 759
A67: 0103042 | B67: Спиральки "Америя" № 042 - Макар. изд-я 0.4кг. | C67: 400 г | D67: 30 | E67: 25.3 | F67: 759
A68: 0103051 | B68: Пружинки рифленые "Америя" № 051 - Макар. изд-я 0.4кг. | C68: 400 г | D68: 30 | E68: 25.3 | F68: 759
A69: 0103052/1 | B69: Детские "Америшки" № 052 - Макар. изд-я 0.4кг, уп х 30 | C69: 400 г | D69: 30 | E69: 25.3 | F69: =D69*E69 -> 759
A70: 0103054 | B70: Улитки рифленые "Америя" № 054 - Макар. изд-я 0.4кг. | C70: 400 г | D70: 30 | E70: 25.3 | F70: 759
A71: 0103055 | B71: Бешбармак "Америя" № 055 - Макар. изд-я 0.4кг (уп х 12) | C71: 400 г | D71: 12 | E71: 26.62 | F71: =D71*E71 -> 319.44
A72: 0103056 | B72: Рожки рифленые большие "Америя" № 056 - Макар.изд-я 0,4кг. | C72: 400 г | D72: 30 | E72: 25.3 | F72: 759
A73: 0103057 | B73: Рожки гладкие мелкие № 57 "Америя" Макар. изд-я 400гр, уп х 30 | C73: 400 г | D73: 30 | E73: 25.3 | F73: =D73*E73 -> 759
A74: 0103059 | B74: Улитки "Америя" № 059 - Макар.изд-я 0,4кг. | C74: 400 г | D74: 30 | E74: 25.3 | F74: 759
A75: 0103092 | B75: Звездочки "Америя" № 092 - Макар.изд-я 0,4кг. | C75: 400 г | D75: 30 | E75: 25.3 | F75: 759
A76: 0103096 | B76: Вермишель "Америя" № 096 - Макар. изд-я 0.4кг. | C76: 400 г | D76: 30 | E76: 25.3 | F76: 759
A77: 0103097 | B77: Лапша короткая "Америя" № 097 Макар. изд-я 0,4кг. | C77: 400 г | D77: 30 | E77: 25.3 | F77: 759
A79: 0103005/7 | B79: Соломка № 005 "Америя" (Спагетти с дырочкой) Макар. изд-я 700гр х 24 | C79: 700 г | D79: 24 | E79: 42.68 | F79: =D79*E79 -> 1024.32
A80: 0103023/7 | B80: Перья рифленые № 023 "Америя" Макар. изд-я 700гр х 22 | C80: 700 г | D80: 22 | E80: 42.68 | F80: =D80*E80 -> 938.96
A81: 0103042/8 | B81: Спиральки № 042 "Америя" Макар. изд-я 700гр х 20 | C81: 700 г | D81: 20 | E81: 42.68 | F81: =D81*E81 -> 853.6
A82: 0103051/7 | B82: Пружинки рифленые № 051 "Америя" - Макар. изд-я 700гр х 20 | C82: 700 г | D82: 20 | E82: 42.68 | F82: =D82*E82 -> 853.6
A83: 0103056/8 | B83: Рожки рифленые большие № 056 "Америя" Макар.изд-я 700гр х 22 | C83: 700 г | D83: 20 | E83: 42.68 | F83: =D83*E83 -> 853.6
A84: 0103059/7 | B84: Улитки № 059 "Америя" - Макар.изд-я 700гр х 20 | C84: 700 г | D84: 20 | E84: 42.68 | F84: =D84*E84 -> 853.6
A85: 0103096/7 | B85: Вермишель № 096 "Америя" - Макар. изд-я 700гр х 16 | C85: 700 г | D85: 16 | E85: 42.68 | F85: =D85*E85 -> 682.88
A86: 0103097/7 | B86: Лапша короткая № 097 "Америя"- Макар. изд-я 700гр х 20 | C86: 700 г | D86: 20 | E86: 42.68 | F86: =D86*E86 -> 853.6
A88: 0103203 | B88: Америя № 003 Спагетти, 4кг. (уп х 4пак.) | C88: 4 кг | D88: 4 | E88: 226.6 | F88: 906.4
A89: 0103223/1 | B89: Америя № 23 Перья рифленые, 4кг. (уп х 4пак.) (кор) | C89: 4 кг | D89: 4 | E89: 226.6 | F89: 906.4
A90: 0103242/1 | B90: Америя № 42 Спиральки, 4кг. (уп х 4пак.) (кор) | C90: 4 кг | D90: 4 | E90: 226.6 | F90: 906.4
A91: 0103251/1 | B91: Америя № 51 Пружинки рифленые, 4кг. (уп х 4пак.) (кор) | C91: 4 кг | D91: 4 | E91: 226.6 | F91: 906.4
A92: 0103256/1 | B92: Америя № 56 Рожки рифленые, 4кг. (уп х 4пак.) (кор) | C92: 4 кг | D92: 4 | E92: 226.6 | F92: 906.4
A93: 0103257/1 | B93: Америя № 57 Рожки гладкие мелкие Макар. изд-я 4кг, уп х 4 (кор) | C93: 4 кг | D93: 4 | E93: 226.6 | F93: =D93*E93 -> 906.4
A94: 0103259/1 | B94: Америя № 59 Улитки, 4кг. (уп х 4пак.) (кор) | C94: 4 кг | D94: 4 | E94: 226.6 | F94: 906.4
A95: 0103296/1 | B95: Америя № 96 Вермишель-паутинка, 4кг. (уп х 4пак.) (кор.) | C95: 4 кг | D95: 4 | E95: 226.6 | F95: 906.4
A97: 0103203/1 | B97: Америя № 003 Спагетти, 2кг. (уп х 8пак.) (кор) | C97: 2кг | D97: 8 | E97: 119.9 | F97: =D97*E97 -> 959.2
A98: 0103223/2 | B98: Америя № 23 Перья рифленые, 2кг. (уп х 8пак.) (кор) | C98: 2кг | D98: 8 | E98: 119.9 | F98: =D98*E98 -> 959.2
A99: 0103242/2 | B99: Америя № 42 Спиральки, 2кг. (уп х 8пак.) (кор) | C99: 2кг | D99: 8 | E99: 119.9 | F99: =D99*E99 -> 959.2
A100: 0103251/2 | B100: Америя № 51 Пружинки рифленые, 2кг. (уп х 8пак.) (кор) | C100: 2кг | D100: 8 | E100: 119.9 | F100: =D100*E100 -> 959.2
A101: 0103257/2 | B101: Америя № 57 Рожки гладкие мелкие, 2кг. (уп х 8пак.) (кор) | C101: 2кг | D101: 8 | E101: 119.9 | F101: =D101*E101 -> 959.2
A102: 0103 | B102: "АМЕРИЯ" (Россия), группа В яичные
A103: 0103112 | B103: Я №120 "Америя" Лапша яичная длинная 400гр | C103: 0,4кг | D103: 30 | E103: 39.16 | F103: =D103*E103 -> 1174.8
A104: 0103112/7 | B104: Я №120 "Америя" Лапша яичная длинная 700гр х 28 | C104: 0,7кг | D104: 28 | E104: 64.46 | F104: =D104*E104 -> 1804.88
A105: 0105 | B105: "АМЕРИЯ" (Россия) Весовые макаронные изделия
A106: 0105003 | B106: 3 Спагетти весовые в короб. 20 кг. | C106: 1кг | D106: 20 | E106: 47.3 | F106: =D106*E106 -> 946
A107: 0105003/1 | B107: 3 Спагетти весовые в короб. по 10 кг. | C107: 1кг | D107: 10 | E107: 47.3 | F107: 473
A108: 0105009 | B108: 09 Макароны классические весовые в короб. (1кг х 12), кг. | C108: 1кг | D108: 12 | E108: 47.3 | F108: 567.6
A109: 0105009/1 | B109: 09 Макароны классические весовые в короб. (1кг х 14), кг. | C109: 1кг | D109: 14 | E109: 47.3 | F109: 662.2
A110: 0105021 | B110: 21 Перья гладкие весовые в мешках (1кг х 16), кг. | C110: 1кг | D110: 16 | E110: 47.3 | F110: 756.8
A111: 0105042 | B111: 42 Спиральки весовые в мешках (1кг х 16), кг. | C111: 1кг | D111: 16 | E111: 47.3 | F111: 756.8
A112: 0105051 | B112: 51 Пружинки рифленые весовые в мешках (1кг х 16), кг. | C112: 1кг | D112: 16 | E112: 47.3 | F112: 756.8
A113: 0105056 | B113: 56 Рожки рифленые большие весовые в мешках (1кг х 16), кг. | C113: 1кг | D113: 16 | E113: 47.3 | F113: 756.8
A114: 0105092 | B114: 92 Звездочки весовые в мешках (1кг х 16),кг. | C114: 1кг | D114: 16 | E114: 47.3 | F114: 756.8
A115: 0105096 | B115: 96 Вермишель весовая в мешках (1кг х 16), кг. | C115: 1кг | D115: 16 | E115: 47.3 | F115: 756.8
A116: 0105
A117: 0105003/3 | B117: фасовка по 900гр. "3" Спагетти в/сорт (0,9кг. х 24шт.) | C117: 900гр | D117: 24 | E117: 46.75 | F117: =D117*E117 -> 1122
A118: 0105209 | B118: Фасовка по 600гр. "09" Макароны классические (0,6кг. х 20шт.) | C118: 600гр | D118: 20 | E118: 32.45 | F118: 649
A119: 0105221 | B119: Фасовка по 900гр. "21" Перья гладкие (0,9кг. х 18шт.) | C119: 900гр | D119: 18 | E119: 48.4 | F119: 871.2
A120: 0105242 | B120: Фасовка по 900гр. "42" Спиральки (0,9кг. х 18шт.) | C120: 900гр | D120: 18 | E120: 48.4 | F120: 871.2
A121: 0105256 | B121: Фасовка по 900гр. "56" Рожки рифленые большие (0,9кг. х 20шт.) | C121: 900гр | D121: 20 | E121: 48.4 | F121: 968
A122: 0105296/1 | B122: Фасовка по 900гр. "96" Вермишель (0,9кг. х 20шт.) | C122: 900гр | D122: 20 | E122: 48.4 | F122: 968
A123: 019 | B123: Макаронные изд-я La Molisana (Италия)
A124: 0190002 | B124: 15C La Molisana Макаронные изделия SPAGHETTI Спагетти 500гр (полимер уп. х24) | C124: 500гр | D124: 24 | E124: 121 | F124: =E124*D124 -> 2904
A125: 0190003 | B125: 14B La Molisana Макаронные изделия SPAGHETTONE Спагетти 500гр (полимер уп. х24) | C125: 500гр | D125: 24 | E125: 121 | F125: 2904
A126: 0190004 | B126: 12 La Molisana Макаронные изделия BUCATINI Спагетти с дырочкой 500гр (полимер уп. х24) | C126: 500гр | D126: 24 | E126: 121 | F126: 2904
A127: 0190005 | B127: 5 La Molisana Макаронные изделия FETTUCCINE Длинная лапша 500гр (полимер уп. х24) | C127: 500гр | D127: 24 | E127: 121 | F127: 2904
A128: 0190006 | B128: 15B La Molisana Макаронные изделия Spaghetto Quadrato (Chitarra) спагетти квадратные (полимерн. упх24) | C128: 500гр | D128: 24 | E128: 121 | F128: 2904
A129: 0190010 | B129: 20B La Molisana Макаронные изделия PENNE ZITI RIGATE Перья рифленные 500гр (полимер уп. х24) | C129: 500гр | D129: 24 | E129: 127.05 | F129: 3049.2
A130: 0190012 | B130: 25 La Molisana Макаронные изделия ракушки рифленые ABISSINE RIGATE 500гр (полимер уп. х24) | C130: 500гр | D130: 24 | E130: 127.05 | F130: 3049.2
A131: 0190013 | B131: 31B La Molisana Макаронные изделия Rigatoni Трубки рифленые, 500гр (полимер уп. х24) | C131: 500гр | D131: 24 | E131: 127.05 | F131: 3049.2
A132: 0190014 | B132: 73 La Molisana Макаронные изделия Radiatori фигурные, 500гр (полимер уп. х24) | C132: 500гр | D132: 24 | E132: 127.05 | F132: 3049.2
A133: 0190016 | B133: 28C La Molisana Макаронные изделия FUSILLI спиральки, 500гр (полимер уп. х24) | C133: 500гр | D133: 24 | E133: 127.05 | F133: 3049.2
A134: 0190018 | B134: 58A La Molisana Макаронные изделия CAPELLINO SPEZZATO Вермишель 500гр (полимер уп. х24) | C134: 500гр | D134: 24 | E134: 127.05 | F134: 3049.2
A135: 0190020 | B135: 72 La Molisana Макаронные изделия FANTASIA фигурные, 500гр (полимер уп.) | C135: 500гр | D135: 24 | E135: 127.05 | F135: 3049.2
A136: 0190021 | B136: 37 La Molisana Макаронные изделия Maccheroni Трубки рифленые, 500 г (полимер уп х 24) | C136: 500гр | D136: 24 | E136: 127.05 | F136: =E136*D136 -> 3049.2
A137: 0190025 | B137: 9 La Molisana Макаронные изделия MEZZI ZITI макароны, 500гр (полимер уп. х24) | C137: 500гр | D137: 24 | E137: 261.8 | F137: =E137*D137 -> 6283.2
A138: 0190026 | B138: 66 La Molisana Макаронные изделия FARFALLE Бантики 500гр (полимер уп. х24) | C138: 500гр | D138: 24 | E138: 127.05 | F138: 3049.2
A139: 0190027 | B139: 108 La Molisana Макаронные изделия FUSILLI CORTI BUCATI Пружинки, 500гр (полимер. уп х24) | C139: 500гр | D139: 24 | E139: 127.05 | F139: 3049.2
A140: 0190032 | B140: 313 La Molisana Макаронные изделия CONCHIGLIONI Ракушки рифл. гигант 500гр (полимер уп. х12) | C140: 500гр | D140: 12 | E140: 259.6 | F140: 3115.2
A141: 0190035 | B141: 220 La Molisana Макаронные изделия LASAGNE DI SFOGLIA REGINA Лазанья яичная 500гр (карт уп. х12) | C141: 500гр | D141: 12 | E141: 247.5 | F141: 2970
A142: 0190039 | B142: 1340104312 La Molisana Макаронные изделия CANNELLONI Каннеллони 250г (карт уп. х 12) | C142: 250гр | D142: 12 | E142: 168.3 | F142: 2019.6
A143: 0190041 | B143: 103 La Molisana Макаронные изделия TAGLIATELLE лапша в гнёздах 500гр (полимер уп. х12) | C143: 500гр | D143: 12 | E143: 251.9 | F143: 3022.8
A144: 0190042 | B144: 104 La Molisana Макаронные изделия FETTUCCINE лапша в гнёздах, 500гр (полимер уп. х12) | C144: 500гр | D144: 12 | E144: 251.9 | F144: 3022.8
A145: 0190045 | B145: 202 La Molisana Макаронные изделия TAGLIERINI лапша яичная в гнёздах 250гр (карт уп. х12) | C145: 250гр | D145: 12 | E145: 151.8 | F145: 1821.6
A146: 0190047 | B146: 204 La Molisana Макаронные изделия FETTUCCINE яичная лапша в гнёздах 250гр (карт уп. х12) | C146: 250гр | D146: 12 | E146: 151.8 | F146: 1821.6
A147: 0190050 | B147: 309 La Molisana Макаронные изделия FUSILLI с добавлением томатов и шпината, 500гр (полимер уп. х24) | C147: 500гр | D147: 24 | E147: 149.6 | F147: 3590.4
A148: 0190054 | B148: 15 La Molisana Макаронные изделия SPAGHETTI AL NERO Спагетти с чернилами каракатицы 500гр | C148: 500гр | D148: 24 | E148: 244.2 | F148: =E148*D148 -> 5860.8
A149: 0190060/1 | B149: La Molisana CHICCHE DI PATATE Картофельные ньокки (клёцки мелкие) 500гр (карт уп. х12) | C149: 500гр | D149: 12 | E149: 137.5 | F149: 1650
A150: 0190062 | B150: 835 La Molisana Макаронные изделия Cous Cous "Кус-кус", 500гр | C150: 500гр | D150: 20 | E150: 176 | F150: 3520
A151: 0190070 | B151: 1475905202 La Molisana 20 PENNE RIGATE GLUTEN FREE Мак. изд. Перья многозерновые без глютена, 400 г (полимер уп х 12) | C151: 400гр | D151: 12 | E151: 264 | F151: 3168
A152: 0190071 | B152: 15 La Molisana SPAGHETTI GLUTEN FREE Мак. изд. СПАГЕТТИ многозерновые без глютена, 400 г (полимер уп х 12) | C152: 400гр | D152: 12 | E152: 264 | F152: 3168
A153: 0190073/2 | B153: 15 La Molisana Макаронные изделия цельнозерновые Spaghetti Integrali спагетти, 500 г (полимер уп х 18) | C153: 500гр | D153: 18 | E153: 137.5 | F153: 2475
A154: КРУПЫ
A155: 025 | B155: Рис и рисовые продукты RISO SCOTTI (Италия)
A156: 0250094 | B156: "Riso Scotti" Risotto Рис для Ризотто шлиф. среднез. (полимер.уп.) | C156: 500гр | D156: 14 | E156: 135.85 | F156: =E156*D156 -> 1901.9
A157: 0250100 | B157: "Riso Scotti" Arborio рис шлиф длинноз. (вак уп, кпртон) | C157: 500гр | D157: 12 | E157: 183.15 | F157: =E157*D157 -> 2197.8
A158: 0250102 | B158: "Riso Scotti" Carnaroli рис шлиф длинноз. (вак уп, картон) | C158: 500гр | D158: 12 | E158: 183.15 | F158: 2197.8
A159: 0250110 | B159: "Riso Scotti" Basmati рис шлиф длинноз. (вак уп, картон) | C159: 500гр | D159: 12 | E159: 207.35 | F159: 2488.2
A160: 0250116 | B160: "Riso Scotti" Ricо Ermes рис коричневый Эрмес (вак уп) | C160: 500гр | D160: 12 | E160: 305.8 | F160: 3669.6
A161: 0250119 | B161: Riso Scotti Rice Gran Nero Integrale Рис Интеграле Гран Неро, 500гр (вак уп) | C161: 500гр | D161: 12 | E161: 346.5 | F161: =E161*D161 -> 4158
A162: 0250120 | B162: U400SD Riso Scotti Basmati brown ricо рис Басмати нешлиф. длиннозерный бурый, 500 г (уп х 12) | C162: 500гр | D162: 12 | E162: 254.1 | F162: 3049.2
A163: 0250122 | B163: U500SD Riso Scotti Jasmine ricо Рис Жасмин шлиф. длиннозерный , 500 г (уп х 12) | C163: 500гр | D163: 12 | E163: 187 | F163: 2244
A164: 0250150/1 | B164: PT04BI7 Ricо Scotti Parboiled Рис шлифованный длиннозерный пропаренный (карт уп) (125гр x 4) x 10 | C164: 500гр | D164: 10 | E164: 127.6 | F164: 1276
A165: 0250152 | B165: "Riso Scotti" Basmati рис шлиф длин. в варочных пак. (карт уп, 100gr x 4) | C165: 400гр | D165: 10 | E165: 158.4 | F165: 1584
A166: 0250182 | B166: VB06TB Rapid Gran Nero Рис Гран Неро говый к употреблению | C166: 255гр | D166: 6 | E166: 191.95 | F166: 1151.7
A167: 0250184 | B167: MP06TB Riso Scotti Basmati rice Рис шлифованный длиннозерный готовый к употреблению, 255 г (уп х 6) | C167: 255гр | D167: 6 | E167: 194.7 | F167: 1168.2
A168: 0250185 | B168: DJ06TB Riso Scotti Riso Rosso Farro e Semi di Chia Рис красный с полбой и семенами чиа готовый к употреблению, 250 г (уп х 6) | C168: 250гр | D168: 6 | E168: 207.9 | F168: 1247.4
A169: 0250185/1 | B169: DK06TB Riso Scotti Basmati Farro e Quinoa Рис Басмати с полбой и киноа готовый к употреблению, 250 г (уп х 6) | C169: 250гр | D169: 6 | E169: 207.9 | F169: 1247.4
A170: 0250200 | B170: "Riso Scotti" Risotto parmigiana ризотто с сыром "Пармезан" (полимер уп) | C170: 210гр | D170: 10 | E170: 176 | F170: 1760
A171: 0250202 | B171: "Riso Scotti" Risotto Porcino ризотто с белыми грибами (полимер уп) | C171: 210гр | D171: 10 | E171: 176 | F171: 1760
A172: 0250208 | B172: "Riso Scotti" Risotto Marinara ризотто с морепродуктами (полимер уп) | C172: 210гр | D172: 10 | E172: 176 | F172: =E172*D172 -> 1760
A173: 0250212 | B173: "Riso Scotti" Risotto Tartufo ризотто с трюфелем (полимер уп) | C173: 210гр | D173: 10 | E173: 176 | F173: 1760
A174: 0250213 | B174: ZG21TBA Riso Scotti Riso Integrale Asparagi e Zucca con Quinoa Рис коричневый с киноа, со спаржей и тыквой, 210 г (уп х 10) | C174: 210гр | D174: 10 | E174: 176 | F174: =E174*D174 -> 1760
A175: 0250220 | B175: "Riso Scotti" Ricо Oil рисовое масло (стекло) | C175: 0,75л | D175: 8 | E175: 403.7 | F175: 3229.6
A176: 0250230/3 | B176: SG18TSEX Riso Scotti Спагетти из рисовой муки, с киноа и амарантом, без глютена (полимер. уп.), 250 г, уп х 18 | C176: 250гр | D176: 12 | E176: 159.5 | F176: =E176*D176 -> 1914
A177: 0250232/2 | B177: PN12TSEX Riso Scotti Перья из рисовой муки, с киноа и амарантом, без глютена (полимер. уп.), 250 г, уп х 12 | C177: 250гр | D177: 12 | E177: 182.05 | F177: 2184.6
A178: 0250234/2 | B178: FS12TSEX Riso Scotti Спиральки из рисовой муки, с киноа и амарантом, без глютена (полимер. уп.), 250 г, уп х 12 | C178: 250гр | D178: 12 | E178: 182.05 | F178: =E178*D178 -> 2184.6
A179: 0250246/1 | B179: K512TY Riso Scotti Хлебцы из риса "Basmati", красного и черного риса без глютена органический продукт (полимер. уп.), 120 г, уп х 12 | C179: 120гр | D179: 12 | E179: 228 | F179: 2736
A180: 0250252 | B180: VO13TY Riso Scotti Хлебцы рисовые с турецким горохом и злаками органический продукт, без глютена (полимер. уп.), 130 г, уп х 12 | C180: 130гр | D180: 12 | E180: 213.6 | F180: =E180*D180 -> 2563.2
A181: 0250252/3 | B181: C212TY Riso Scotti Хлебцы из риса со злаками и киноа без глютена органический продукт (полимер. уп.), 130 г, уп х 12 | C181: 130гр | D181: 12 | E181: 213.6 | F181: 2563.2
A182: 0250253 | B182: ARC5SA Risо Scotti Arborio Рис шлифованный длиннозерный 5кг (1000 г x5), уп. x 2 (полимер. уп.) | C182: 5кг | D182: 2 | E182: 1336.5 | F182: =E182*D182 -> 2673
A183: 0250255 | B183: Riso Scotti Rice Hakumaki рис для суши 10кг | C183: 10кг | D183: 1 | E183: 2079 | F183: =E183*D183 -> 2079
A184: 0250256 | B184: Riso Scotti Rice Hakumaki рис для суши 5кг | C184: 5кг | D184: 2 | E184: 1039.5 | F184: =E184*D184 -> 2079
A185: 0250279 | B185: QY00TC Riso Scotti Смесь злаковых (рис, камут, пшеница) с гречихой и семенами чиа (полимер. уп.), 500 г | C185: 500гр | D185: 8 | E185: 211.2 | F185: =E185*D185 -> 1689.6
A186: 0250281 | B186: Q500SA Riso Scotti Смесь из злаков с киноа (полимер. уп.), 500 г | C186: 500гр | D186: 8 | E186: 211.2 | F186: 1689.6
A187: 0250300 | B187: YH12TX Ricо Scotti CROCK & GUSTA! TURMERIC Чипсы из кукурузы и риса с куркумой 60г, уп х 12 (полимер уп) | C187: 60гр | D187: 12 | E187: 222 | F187: 2664
A188: 0250300/1 | B188: YH72TX Riso Scotti CROCK & GUSTA! TURMERIC Чипсы из кукурузы и риса с куркумой 72 г, уп х 12 (полимер уп) | C188: 72гр | D188: 12 | E188: 222 | F188: 2664
A189: 0250302 | B189: YS12TX Ricо Scotti CROCK & GUSTA! CORN & RICE Чипсы из кукурузы и риса 60г, уп х 12 (полимер уп) | C189: 60гр | D189: 12 | E189: 222 | F189: 2664
A190: 0250304 | B190: YW12TX Ricо Scotti CROCK & GUSTA! VEGGIE Чипсы из кукурузы и риса со шпинатом и семечками 60г, уп х 12 (полимер уп) | C190: 60гр | D190: 12 | E190: 222 | F190: 2664
A191: 0250306 | B191: YZ12TX Ricо Scotti CROCK & GUSTA! GINGER Чипсы из кукурузы и риса с горохом и имбирем 60г, уп х 12 (полимер уп) | C191: 60гр | D191: 12 | E191: 222 | F191: 2664
A192: 250307 | B192: FL12FP Riso Scotti SI' CON RISO Печенье с рисом безлактозное 350 г (полимер. уп.), уп х 12 | C192: 350гр | D192: 12 | E192: 312 | F192: =E192*D192 -> 3744
A193: 0250307/1 | B193: GB12FP Riso Scotti SI' CON RISO Печенье с рисом и шоколадом безлактозное 350 г (полимер. уп.), уп х 12 | C193: 350гр | D193: 12 | E193: 312 | F193: 3744
A194: 0250307/2 | B194: KE12TY Riso Scotti SI' CON RISO Печенье цельнозерновое с рисом безлактозное 250 г (полимер. уп.), уп х 12 | C194: 250гр | D194: 12 | E194: 250.8 | F194: 3009.6
A195: 0250307/3 | B195: RC12FP Riso Scotti SI' CON RISO Печенье с рисом и какао безлактозное 350 г (полимер. уп.), уп х 12 | C195: 350гр | D195: 12 | E195: 312 | F195: 3744
A196: 0250307/5 | B196: IA08TA Riso Scotti SI' CON RISO Печенье рисовое с шоколадом безлактозное 200 г (полимер. уп.) уп х 10 | C196: 200гр | D196: 10 | E196: 312 | F196: 3120
A197: 0250307/6 | B197: DY12FP Riso Scotti SI' CON RISO Печенье рисовое с шоколадно-ореховой начинкой безлактозное 200 г (полимер. уп.) уп х 12 | C197: 200гр | D197: 12 | E197: 312 | F197: 3744
A198: 250309 | B198: DI12TS Riso Scotti SI' CON RISO Кукурузные палочки с рисом и ароматом сыра безлактозные 40 г (полимер. уп.), уп х 12 | C198: 40гр | D198: 12 | E198: 132 | F198: =E198*D198 -> 1584
A199: 0250309/1 | B199: DO12TS Riso Scotti SI' CON RISO Кукурузные палочки с рисом и ароматом пиццы безлактозные 40 г (полимер. уп.), уп х 12 | C199: 40гр | D199: 12 | E199: 132 | F199: =E199*D199 -> 1584
A200: 0250310 | B200: DW12TS Riso Scotti SI' CON RISO Хрустящие рисовые палочки с ароматом сыра безлактозные 40 г (полимер. уп.), уп х 12 | C200: 40гр | D200: 12 | E200: 144 | F200: 1728
A201: 0250310/1 | B201: DT12TS Riso Scotti SI' CON RISO Хрустящие рисовые палочки с ароматом пряностей и сыра безлактозные 40 г (полимер. уп.), уп х 12 | C201: 40гр | D201: 12 | E201: 144 | F201: 1728
A202: 177 | B202: Био-продукты BIOITALIA (Италия)
A203: 1770062 | B203: W000332/314/310 BIOITALIA Spaghetti Макаронные изделия спагетти 500гр | C203: 500гр | D203: 24 | E203: 181.5 | F203: =E203*D203 -> 4356
A204: 1770066 | B204: W005004 Fusilli (tricolore), спиральки 3-х цветные, мак.из.фигурные c добавлением томата и шпината | C204: 500гр | D204: 12 | E204: 278.3 | F204: 3339.6
A205: 1770068 | B205: W001301 Linguine, лингвини , макаронные изделия | C205: 500гр | D205: 24 | E205: 180.4 | F205: 4329.6
A206: 1770070 | B206: W006632 Penne Zita Rigate, пёрышки, макаронные изделия трубчатые | C206: 500гр | D206: 24 | E206: 187 | F206: 4488
A207: 1770072/1 | B207: W004830 BIOITALIA Fusilli Макаронные изделия спиральки 500 гр, уп x 12 | C207: 500гр | D207: 12 | E207: 202.4 | F207: =E207*D207 -> 2428.8
A208: 1770074 | B208: W090301 Pennoni Lisci, перья крупные, макаронные изделия трубчатые | C208: 500гр | D208: 12 | E208: 324.5 | F208: 3894
... 2 more rows
